bitfinex/quotes_SOLUSD_20260304
["timestamp","ask_amount","ask_price","bid_price","bid_amount"]
[1772625200809,0.46771864,89.849,89.801,3.20277489]
[1772625204016,0.47816812,89.847,89.801,3.20277489]
[1772625204227,0.48070591,89.845,89.801,3.20277489]
[1772625204402,0.48070591,89.843,89.801,3.20277489]
[1772625204798,0.28432314,89.849,89.811,3.33727612]
[1772625205325,0.28432314,89.839,89.781,3.33727612]
[1772625205622,7.4252615,89.838,89.781,3.33727612]
[1772625205829,0.28432314,89.829,89.781,3.33727612]
[1772625206716,0.18070591,89.85,89.781,3.33727612]
[1772625206919,0.28432314,89.829,89.781,3.33727612]
[1772625209118,0.28432314,89.849,89.781,3.33727612]
[1772625209302,0.28432314,89.829,89.781,3.33727612]
[1772625209910,0.28432314,89.839,89.781,3.33727612]
[1772625210217,7.42697271,89.838,89.785,3.33727612]
[1772625210421,0.18070591,89.85,89.785,3.33727612]
[1772625211404,0.28432314,89.849,89.785,3.33727612]
[1772625211911,0.18070591,89.85,89.792,0.28432314]
[1772625212111,0.18070591,89.85,89.795,3.33727612]
[1772625212319,0.18070591,89.85,89.802,3.62159926]
[1772625214923,0.02277654,89.864,89.802,3.62159926]
[1772625215106,0.02563597,89.872,89.814,3.33727612]
[1772625215621,0.02563597,89.872,89.815,3.33727612]
[1772625215821,12.4706616,89.91,89.822,3.62159926]
[1772625215822,0.02846255,89.892,89.822,3.62159926]
[1772625216124,0.02846255,89.888,89.822,3.62159926]
[1772625216921,0.03125666,89.886,89.822,3.62159926]
[1772625221727,0.03125666,89.886,89.822,3.33727612]
[1772625222532,0.04736014,89.878,89.822,3.33727612]
[1772625222744,0.04736014,89.868,89.822,3.33727612]
[1772625226516,0.28432314,89.869,89.822,3.33727612]
[1772625226517,0.05749213,89.876,89.822,3.33727612]
[1772625228731,0.0647897,89.873,89.815,3.33727612]
[1772625228930,0.0647897,89.87,89.815,3.33727612]
[1772625230014,0.06716656,89.858,89.782,3.33727612]
[1772625230225,0.06951612,89.855,89.783,3.33727612]
[1772625230418,0.06951612,89.855,89.785,3.33727612]
[1772625230817,0.06951612,89.855,89.791,3.33727612]
[1772625231017,0.06951612,89.855,89.795,3.33727612]
[1772625231212,0.06951612,89.855,89.799,3.33727612]
[1772625231439,0.0718387,89.862,89.805,3.33727612]
[1772625233235,0.07640412,89.858,89.805,3.33727612]
[1772625233453,0.07640412,89.856,89.805,3.33727612]
[1772625233737,0.07640412,89.869,89.805,3.33727612]
[1772625233935,0.07640412,89.867,89.805,3.33727612]
[1772625234141,0.07640412,89.865,89.805,3.33727612]
[1772625234539,0.07864758,89.878,89.805,3.33727612]
[1772625234740,7.49207664,89.877,89.815,3.33727612]
[1772625234932,7.41342906,89.876,89.815,3.33727612]
[1772625235251,0.08086527,89.874,89.815,3.33727612]
[1772625236133,0.2,89.9,89.826,3.33727612]
[1772625236134,0.08305749,89.899,89.826,3.33727612]
[1772625236333,0.08305749,89.897,89.839,3.33727612]
[1772625236537,0.08305749,89.897,89.841,3.33727612]
[1772625237147,0.14216157,89.899,89.841,3.33727612]
[1772625237849,0.08522452,89.898,89.841,3.33727612]
[1772625238231,0.08522452,89.898,89.83,11.11729542]
[1772625238232,0.08522452,89.898,89.845,3.33727612]
[1772625240733,0.09157743,89.888,89.845,3.33727612]
[1772625255854,0.12023965,89.868,89.829,3.33727612]
[1772625257141,0.12023965,89.868,89.793,3.33727612]
[1772625257340,0.12369959,89.858,89.793,3.33727612]
[1772625257536,0.12369959,89.858,89.795,3.33727612]
[1772625257955,7.54580097,89.857,89.795,3.33727612]
[1772625258153,0.12369959,89.857,89.795,3.33727612]
[1772625258350,0.12369959,89.857,89.821,3.33727612]
[1772625260062,0.1287419,89.839,89.801,3.33727612]
[1772625260762,0.13038421,89.848,89.821,3.33727612]
[1772625261262,0.13200765,89.858,89.831,3.33727612]
[1772625262570,0.13200765,89.858,89.821,3.33727612]
[1772625264175,0.28432314,89.849,89.811,3.33727612]
[1772625264353,2.76927542,89.88,89.804,3.33727612]
[1772625264354,0.13831709,89.838,89.804,3.33727612]
[1772625266247,0.14136414,89.848,89.811,3.33727612]
[1772625266674,0.28432314,89.849,89.821,3.33727612]
[1772625266970,0.14136414,89.855,89.821,3.33727612]
[1772625269066,7.41270996,89.854,89.821,3.33727612]
[1772625269250,0.14136414,89.855,89.821,3.33727612]
[1772625269451,0.14580473,89.853,89.821,3.33727612]
[1772625269657,0.14580473,89.851,89.811,3.33727612]
[1772625273658,0.15149111,89.848,89.803,3.33727612]
[1772625274059,0.15149111,89.838,89.803,3.33727612]
[1772625279467,0.15954285,89.828,89.791,3.33727612]
[1772625282079,0.16210511,89.818,89.783,3.33727612]
[1772625282379,0.16210511,89.818,89.771,3.33727612]
[1772625282686,0.16336421,89.798,89.761,3.33727612]
[1772625283561,0.16460885,89.809,89.771,3.33727612]
[1772625283764,0.16460885,89.807,89.771,3.33727612]
[1772625284077,0.44893199,89.819,89.781,3.33727612]
[1772625284270,0.16583919,89.818,89.781,3.33727612]
[1772625285382,0.16583919,89.818,89.729,11.02078171]
[1772625285383,0.16705539,89.85,89.811,3.33727612]
[1772625285679,0.16705539,89.85,89.821,3.33727612]
[1772625286062,0.16705539,89.852,89.821,3.33727612]
[1772625286867,0.16825763,89.859,89.821,3.33727612]
[1772625287577,7.04664839,89.853,89.821,3.33727612]
[1772625292379,6.87720233,89.853,89.821,3.33727612]
[1772625292582,0.17629542,89.852,89.821,3.33727612]
[1772625293876,0.17739153,89.848,89.814,3.33727612]
[1772625294264,0.17739153,89.848,89.81,6.59101628]
[1772625294470,0.28432314,89.839,89.807,3.33727612]
[1772625294777,0.17847504,89.838,89.807,3.33727612]
[1772625297083,6.87720233,89.853,89.821,3.33727612]
[1772625297290,0.1816515,89.852,89.821,3.33727612]
[1772625297600,0.1816515,89.888,89.84,6.59101628]
[1772625297886,0.1816515,89.901,89.86,6.59101628]
[1772625298070,7.40667182,89.899,89.86,6.59101628]
[1772625298272,7.40667182,89.898,89.86,6.59101628]
[1772625298486,7.40667182,89.897,89.86,6.59101628]
[1772625298671,0.18268609,89.899,89.861,3.33727612]
[1772625298988,0.18268609,89.897,89.861,3.33727612]
[1772625299189,0.18370879,89.895,89.851,3.33727612]
[1772625299386,0.28432314,89.89,89.851,3.33727612]
[1772625299586,7.40970909,89.889,89.851,3.33727612]
[1772625299780,7.40970909,89.888,89.851,3.33727612]
[1772625299975,0.28432314,89.897,89.86,6.59101628]
[1772625300176,0.18370879,89.888,89.86,6.59101628]
[1772625300370,7.40951603,89.887,89.859,3.33727612]
[1772625301189,7.40951603,89.887,89.861,3.33727612]
[1772625301372,0.1857191,89.893,89.861,3.33727612]
[1772625301577,0.1857191,89.89,89.861,3.33727612]
[1772625301792,7.41117995,89.889,89.861,3.33727612]
[1772625301989,7.41117995,89.888,89.861,3.33727612]
[1772625302174,0.28432314,89.897,89.861,3.33727612]
[1772625302374,0.28432314,89.895,89.861,3.33727612]
[1772625302585,0.28432314,89.893,89.861,3.33727612]
[1772625302786,0.28432314,89.891,89.861,3.33727612]
[1772625303088,0.2,89.9,89.861,3.33727612]
[1772625303290,7.41055567,89.899,89.861,3.33727612]
[1772625303476,7.41055567,89.898,89.861,3.33727612]
[1772625303676,7.41055567,89.897,89.861,3.33727612]
[1772625303893,0.2,89.9,89.871,3.33727612]
[1772625304077,0.2,89.9,89.819,1.11335018]
[1772625304078,0.2,89.91,89.891,3.33727612]
[1772625306174,3.48507965,89.909,89.891,3.28642772]
[1772625306378,0.1,89.93,89.9,6.59101628]
[1772625306573,3.18436209,89.93,89.9,2.76253635]
[1772625306997,3.18436209,89.93,89.91,2.76253635]
[1772625307196,0.1,89.93,89.91,2.76253635]
[1772625308425,0.1,89.93,89.869,3.69383402]
[1772625308426,3.18436209,89.93,89.869,3.69383402]
[1772625308593,0.1,89.93,89.901,3.28642772]
[1772625308780,0.1,89.93,89.911,3.28642772]
[1772625309185,0.1,89.93,89.92,2.76253635]
[1772625309495,2.96253635,89.96,89.92,2.76253635]
[1772625309496,4.11048627,89.955,89.921,3.28642772]
[1772625309684,4.11048627,89.955,89.928,3.28642772]
[1772625309875,3.08436209,89.954,89.92,2.76253635]
[1772625310082,3.08436209,89.939,89.9,2.76253635]
[1772625310481,3.08436209,89.939,89.91,2.76253635]
[1772625310682,3.36868523,89.947,89.91,2.76253635]
[1772625311101,3.36868523,89.947,89.9,2.76253635]
[1772625311603,3.36868523,89.947,89.91,2.76253635]
[1772625311781,3.36868523,89.947,89.897,1.07859122]
[1772625311984,3.36868523,89.939,89.9,2.76253635]
[1772625312402,3.36868523,89.939,89.91,2.76253635]
[1772625312602,3.36868523,89.939,89.91,6.57859343]
[1772625312897,3.08436209,89.939,89.91,6.57859343]
[1772625313199,3.08436209,89.939,89.9,6.57859343]
[1772625313408,3.08436209,89.929,89.89,6.57859343]
[1772625314204,3.08436209,89.919,89.88,6.57859343]
[1772625315377,3.08436209,89.919,89.868,1.09892297]
[1772625315586,3.08436209,89.909,89.88,6.57859343]
[1772625317201,3.08436209,89.909,89.89,6.57859343]
[1772625318482,3.08436209,89.909,89.88,7.67944912]
[1772625318883,3.08436209,89.909,89.849,1.10210746]
[1772625319084,3.08436209,89.909,89.855,1.10210746]
[1772625320892,0.28432314,89.904,89.855,1.10210746]
[1772625321102,3.31568291,89.899,89.855,1.10210746]
[1772625321492,3.31568291,89.899,89.833,1.10393171]
[1772625321695,3.31568291,89.899,89.835,1.10393171]
[1772625325107,3.31568291,89.899,89.836,0.28432314]
[1772625325411,3.31568291,89.899,89.831,3.69383402]
[1772625325412,3.31568291,89.899,89.845,1.10683508]
[1772625325909,3.3663506,89.919,89.864,0.28432314]
[1772625326123,3.3663506,89.919,89.865,1.10683508]
[1772625326916,3.3663506,89.915,89.865,1.10683508]
[1772625327119,3.3663506,89.909,89.865,1.10683508]
[1772625344434,3.3663506,89.895,89.828,1.11645764]
[1772625344635,3.3663506,89.889,89.828,1.11645764]
[1772625344828,3.3663506,89.887,89.828,1.11645764]
[1772625345132,3.3663506,89.885,89.828,1.11645764]
[1772625345737,3.3663506,89.878,89.795,1.11690794]
[1772625345956,9.21208916,89.906,89.794,11.02078171]
[1772625345957,3.45398574,89.912,89.796,1.11363535]
[1772625346134,3.45398574,89.912,89.8,8.80293285]
[1772625346434,3.45398574,89.912,89.79,12.22799648]
[1772625346435,0.28432314,89.909,89.822,0.14216157]
[1772625346633,0.28432314,89.899,89.822,0.14216157]
[1772625347037,0.28432314,89.899,89.81,0.28432314]
[1772625347229,0.28432314,89.899,89.81,0.14216157]
[1772625347414,0.28432314,89.889,89.81,0.14216157]
[1772625347618,3.45398574,89.888,89.81,0.14216157]
[1772625348124,3.45398574,89.888,89.806,0.14216157]
[1772625348841,0.28432314,89.887,89.804,3.69383402]
[1772625349033,3.73830888,89.879,89.786,0.14216157]
[1772625349235,3.73830888,89.879,89.781,4.82477569]
[1772625350328,3.73830888,89.879,89.782,0.28432314]
[1772625350936,2.7644239,89.87,89.787,8.80293285]
[1772625351239,3.73830888,89.869,89.787,8.80293285]
[1772625351432,3.45398574,89.869,89.792,8.80293285]
[1772625351739,3.45398574,89.869,89.797,0.28432314]
[1772625353646,3.69383402,89.903,89.786,0.28432314]
[1772625353647,3.45398574,89.859,89.786,0.28432314]
[1772625353822,3.45398574,89.859,89.782,4.82477569]
[1772625354238,3.45398574,89.859,89.786,0.28432314]
[1772625355425,3.45398574,89.859,89.783,0.28432314]
[1772625356324,3.45398574,89.859,89.796,0.14216157]
[1772625356531,3.45398574,89.859,89.798,0.14216157]
[1772625356731,3.45398574,89.859,89.801,8.80293285]
[1772625357135,3.97815716,89.899,89.807,3.54322512]
[1772625357335,0.28432314,89.899,89.821,0.14216157]
[1772625357639,102.7,89.902,89.824,3.25890198]
[1772625357943,7.39090212,89.901,89.824,3.25890198]
[1772625358151,7.39090212,89.9,89.824,3.25890198]
[1772625358336,7.67719994,89.899,89.824,3.25890198]
[1772625358533,7.3928768,89.898,89.824,3.25890198]
[1772625358733,0.28432314,89.896,89.824,3.25890198]
[1772625359051,0.28432314,89.894,89.824,3.25890198]
[1772625359228,3.22053854,89.889,89.824,3.25890198]
[1772625363342,3.22053854,89.887,89.824,3.25890198]
[1772625363849,3.22053854,89.879,89.824,3.25890198]
[1772625364052,3.22053854,89.877,89.824,3.25890198]
[1772625364257,3.22053854,89.877,89.773,104.5]
[1772625364258,3.50486168,89.859,89.803,3.25890198]
[1772625365654,3.22053854,89.849,89.803,3.25890198]
[1772625374456,3.22053854,89.849,89.788,0.28432314]
[1772625374661,3.22053854,89.849,89.795,3.25890198]
[1772625380853,3.32353011,89.839,89.795,3.25890198]
[1772625381050,3.32353011,89.839,89.781,3.15849168]
[1772625381370,0.28432314,89.847,89.774,3.15849168]
[1772625381371,3.32353011,89.829,89.774,3.15849168]
[1772625382567,3.32353011,89.829,89.771,0.28432314]
[1772625382753,3.32353011,89.829,89.771,3.37576071]
[1772625382954,3.26652267,89.819,89.771,3.09143757]
[1772625383154,3.26652267,89.817,89.771,3.09143757]
[1772625383449,3.55084581,89.809,89.764,3.09143757]
[1772625383664,3.55084581,89.809,89.722,5.81049703]
[1772625383665,3.55084581,89.799,89.75,3.29143757]
[1772625383970,3.55084581,89.799,89.75,0.2]
[1772625383971,3.55084581,89.789,89.75,0.2]
[1772625384365,9.20049577,89.827,89.75,0.2]
[1772625384366,3.69383402,89.826,89.751,3.09143757]
[1772625384562,3.26652267,89.818,89.755,3.09143757]
[1772625392379,3.55084581,89.809,89.75,0.2]
[1772625392681,3.55084581,89.809,89.751,3.09143757]
[1772625396281,3.26652267,89.798,89.751,3.09143757]
[1772625398179,3.26652267,89.798,89.75,0.2]
[1772625398977,3.26652267,89.798,89.75,3.29143757]
[1772625401268,3.26652267,89.798,89.754,3.09143757]
[1772625402793,0.28432314,89.778,89.72,3.29143757]
[1772625402973,0.28432314,89.759,89.72,0.2]
[1772625403174,2.7705459,89.76,89.72,0.2]
[1772625403476,0.28432314,89.759,89.72,0.2]
[1772625404884,3.26652267,89.758,89.72,0.2]
[1772625406085,3.26652267,89.758,89.698,3.09143757]
[1772625406593,3.26652267,89.758,89.711,3.09143757]
[1772625407190,3.26652267,89.758,89.704,3.09143757]
[1772625407490,3.26652267,89.758,89.71,3.29143757]
[1772625409081,3.26652267,89.758,89.71,0.2]
[1772625409485,3.26652267,89.758,89.71,3.47979352]
[1772625409891,0.28432314,89.759,89.71,3.47979352]
[1772625409892,3.33635533,89.748,89.71,0.2]
[1772625410096,3.33635533,89.739,89.71,0.2]
[1772625411382,3.33635533,89.739,89.711,3.27979352]
[1772625411596,0.28432314,89.769,89.711,3.27979352]
[1772625413379,0.28432314,89.779,89.711,3.27979352]
[1772625413589,0.28432314,89.759,89.711,3.27979352]
[1772625413796,3.33635533,89.758,89.711,3.27979352]
[1772625417579,3.33635533,89.784,89.725,3.27979352]
[1772625418901,3.33635533,89.778,89.725,3.27979352]
[1772625419205,3.33635533,89.768,89.725,3.27979352]
[1772625420302,3.62067847,89.759,89.711,3.27979352]
[1772625420504,3.62067847,89.759,89.71,0.2]
[1772625423107,3.62067847,89.759,89.71,3.47979352]
[1772625423802,3.33635533,89.767,89.71,3.47979352]
[1772625424394,3.33635533,89.767,89.714,3.27979352]
[1772625427008,3.33635533,89.765,89.716,3.27979352]
[1772625429201,3.33635533,89.763,89.718,3.27979352]
[1772625430310,3.33635533,89.761,89.72,3.27979352]
[1772625432214,3.33635533,89.759,89.722,3.27979352]
[1772625432914,3.33635533,89.773,89.722,3.27979352]
[1772625433118,3.33635533,89.771,89.722,3.27979352]
[1772625433417,3.33635533,89.769,89.722,3.27979352]
[1772625433715,3.33635533,89.767,89.722,3.27979352]
[1772625433911,3.33635533,89.767,89.724,3.27979352]
[1772625434105,3.33635533,89.765,89.724,3.27979352]
[1772625435516,3.33635533,89.787,89.724,3.27979352]
[1772625435722,3.33635533,89.785,89.724,3.27979352]
[1772625435918,3.33635533,89.785,89.723,39.00894975]
[1772625435919,3.33635533,89.783,89.726,3.27979352]
[1772625436223,3.33635533,89.781,89.726,3.27979352]
[1772625436420,3.33635533,89.779,89.726,3.27979352]
[1772625436609,3.33635533,89.777,89.726,3.27979352]
[1772625436811,3.33635533,89.775,89.726,3.27979352]
[1772625437017,3.33635533,89.773,89.726,3.27979352]
[1772625437218,3.33635533,89.771,89.726,3.27979352]
[1772625437521,38.98244675,89.784,89.726,3.27979352]
[1772625437522,3.33635533,89.769,89.726,3.27979352]
[1772625437705,3.33635533,89.767,89.726,3.27979352]
[1772625438021,3.33635533,89.765,89.726,3.27979352]
[1772625438219,3.33635533,89.762,89.728,3.27979352]
[1772625438521,3.15956686,89.76,89.728,3.27979352]
[1772625438721,10.51281814,89.759,89.728,3.27979352]
[1772625438898,3.15956686,89.759,89.728,3.27979352]
[1772625439512,11.14044762,89.763,89.728,3.27979352]
[1772625439513,3.15956686,89.774,89.728,3.0614328]
[1772625439912,3.15956686,89.772,89.728,3.0614328]
[1772625440114,3.15956686,89.77,89.73,3.0614328]
[1772625441322,3.15956686,89.77,89.732,3.0614328]
[1772625441711,3.15956686,89.768,89.732,3.0614328]
[1772625443322,3.28570936,89.766,89.733,11.14417215]
[1772625445219,3.28570936,89.764,89.729,3.205124]
[1772625447216,3.28570936,89.764,89.728,11.14479315]
[1772625447217,3.28570936,89.762,89.731,3.205124]
[1772625449228,3.28570936,89.762,89.733,3.205124]
[1772625450430,3.28570936,89.775,89.733,3.205124]
[1772625451632,3.28570936,89.773,89.734,11.14404796]
[1772625451831,3.28570936,89.769,89.735,3.205124]
[1772625452010,3.28570936,89.767,89.735,3.205124]
[1772625452212,10.69568604,89.766,89.735,3.205124]
[1772625452537,3.28570936,89.764,89.735,3.205124]
[1772625452831,3.28570936,89.762,89.735,3.205124]
[1772625453031,7.40997668,89.761,89.735,3.205124]
[1772625453230,7.40997668,89.76,89.735,3.205124]
[1772625453538,7.40997668,89.759,89.735,3.205124]
[1772625453736,7.40997668,89.758,89.737,3.205124]
[1772625453929,7.40997668,89.757,89.737,3.205124]
[1772625454123,7.40997668,89.756,89.737,3.205124]
[1772625454329,7.40997668,89.755,89.737,3.205124]
[1772625454635,7.40997668,89.754,89.737,3.205124]
[1772625454808,7.40997668,89.753,89.737,3.205124]
[1772625455015,7.40997668,89.752,89.737,3.205124]
[1772625455217,7.40997668,89.751,89.737,3.205124]
[1772625455544,3.28570936,89.762,89.737,3.205124]
[1772625455721,3.28570936,89.78,89.739,3.205124]
[1772625459240,3.28570936,89.778,89.741,3.205124]
[1772625461238,3.28570936,89.776,89.743,3.205124]
[1772625462028,3.28570936,89.784,89.743,3.205124]
[1772625463244,3.28570936,89.784,89.745,3.205124]
[1772625464429,3.28570936,89.782,89.745,3.205124]
[1772625464829,3.28570936,89.787,89.745,3.205124]
[1772625465026,3.28570936,89.786,89.745,3.205124]
[1772625465231,3.28570936,89.784,89.747,3.205124]
[1772625467427,3.28570936,89.782,89.749,3.205124]
[1772625467627,3.28570936,89.78,89.749,3.205124]
[1772625468839,3.28570936,89.78,89.751,3.27293989]
[1772625470738,3.28570936,89.78,89.753,3.27293989]
[1772625472625,3.28570936,89.78,89.755,3.27293989]
[1772625473743,11.13724158,89.789,89.755,3.27293989]
[1772625474047,7.40356355,89.788,89.757,3.27293989]
[1772625474242,7.40356355,89.787,89.757,3.27293989]
[1772625474543,9.16709571,89.819,89.758,3.27293989]
[1772625474845,102.7,89.859,89.758,3.27293989]
[1772625474846,0.28432314,89.825,89.758,3.27293989]
[1772625475235,38.9642197,89.826,89.758,3.27293989]
[1772625475436,0.28432314,89.825,89.758,3.27293989]
[1772625475636,3.35923914,89.825,89.758,3.27293989]
[1772625475832,3.35923914,89.823,89.76,3.27293989]
[1772625476038,3.35923914,89.817,89.76,3.27293989]
[1772625476447,3.05750243,89.81,89.759,11.14094408]
[1772625476647,3.35923914,89.807,89.76,3.27293989]
[1772625479046,11.13511346,89.806,89.761,11.14069584]
[1772625479255,3.35923914,89.805,89.762,3.27293989]
[1772625481258,11.13536145,89.804,89.763,11.14044762]
[1772625481551,3.35923914,89.803,89.764,3.27293989]
[1772625482856,3.35923914,89.818,89.764,3.27293989]
[1772625483644,9.16709571,89.838,89.757,55.70591493]
[1772625483645,3.35923914,89.816,89.766,3.27293989]
[1772625484652,3.35923914,89.814,89.768,3.27293989]
[1772625485357,27.83104431,89.828,89.768,3.27293989]
[1772625485358,14.49255971,89.821,89.768,3.27293989]
[1772625485833,3.35923914,89.82,89.768,3.27293989]
[1772625486648,3.35923914,89.818,89.768,3.27293989]
[1772625486858,3.35923914,89.816,89.77,3.27293989]
[1772625487642,3.35923914,89.816,89.769,38.98896054]
[1772625487643,3.35923914,89.836,89.774,3.27293989]
[1772625487850,3.35923914,89.834,89.774,3.27293989]
[1772625488056,38.95944876,89.837,89.774,3.27293989]
[1772625488057,3.35923914,89.832,89.774,3.27293989]
[1772625488251,3.35923914,89.828,89.774,3.27293989]
[1772625488948,3.35923914,89.826,89.776,3.27293989]
[1772625489146,3.35923914,89.824,89.776,3.27293989]
[1772625489351,3.35923914,89.822,89.776,3.27293989]
[1772625489554,3.35923914,89.82,89.776,3.27293989]
[1772625489751,3.35923914,89.818,89.776,3.27293989]
[1772625489954,3.35923914,89.816,89.775,11.1389585]
[1772625490158,3.35923914,89.816,89.735,4.82477569]
[1772625490159,3.35923914,89.807,89.764,11.14023442]
[1772625490468,38.96378593,89.827,89.755,3.27293989]
[1772625490469,3.35923914,89.797,89.755,3.27293989]
[1772625490757,3.35923914,89.795,89.74,3.27293989]
[1772625490948,3.35923914,89.793,89.742,3.27293989]
[1772625491147,3.35923914,89.791,89.742,3.27293989]
[1772625491355,3.35923914,89.789,89.742,3.27293989]
[1772625491554,3.35923914,89.787,89.742,3.27293989]
[1772625491738,7.38621519,89.788,89.742,3.27293989]
[1772625491739,3.35923914,89.785,89.742,3.27293989]
[1772625491939,3.35923914,89.783,89.742,3.27293989]
[1772625492149,3.35923914,89.781,89.742,3.27293989]
[1772625493364,3.35923914,89.779,89.744,3.27293989]
[1772625494859,3.35923914,89.777,89.732,3.27293989]
[1772625495059,3.35923914,89.775,89.732,3.27293989]
[1772625495356,3.35923914,89.773,89.734,3.27293989]
[1772625495558,3.35923914,89.771,89.734,3.27293989]
[1772625496852,3.35923914,89.769,89.736,3.27293989]
[1772625497963,3.35923914,89.769,89.738,3.27293989]
[1772625499345,3.29121403,89.767,89.738,3.27293989]
[1772625499548,11.13909117,89.774,89.738,3.27293989]
[1772625499763,3.29121403,89.778,89.738,3.27293989]
[1772625499969,3.29121403,89.778,89.733,15.52242466]
[1772625499970,3.29121403,89.778,89.74,3.25282728]
[1772625500346,3.29121403,89.798,89.74,3.25282728]
[1772625500645,3.29121403,89.796,89.74,3.25282728]
[1772625500846,3.29121403,89.794,89.74,3.25282728]
[1772625501145,3.29121403,89.792,89.74,3.25282728]
[1772625501363,3.29121403,89.79,89.74,3.25282728]
[1772625501564,3.29121403,89.788,89.74,3.25282728]
[1772625501870,3.29121403,89.786,89.74,3.25282728]
[1772625502053,3.29121403,89.783,89.742,3.25282728]
[1772625502364,3.29121403,89.781,89.742,3.25282728]
[1772625502565,3.04101134,89.779,89.742,3.25282728]
[1772625504567,3.04101134,89.807,89.755,3.21020759]
[1772625504754,3.04101134,89.805,89.755,3.21020759]
[1772625505068,3.04101134,89.803,89.755,3.21020759]
[1772625505265,3.04101134,89.801,89.755,3.21020759]
[1772625505450,3.04101134,89.799,89.755,3.21020759]
[1772625505650,3.04101134,89.797,89.755,3.21020759]
[1772625505851,3.04101134,89.795,89.755,3.21020759]
[1772625506051,3.04101134,89.793,89.755,3.21020759]
[1772625506253,3.04101134,89.791,89.755,3.21020759]
[1772625506446,10.42342453,89.79,89.756,11.14131645]
[1772625506651,3.04101134,89.789,89.757,3.21020759]
[1772625507754,3.32533448,89.818,89.757,3.21020759]
[1772625507955,3.04101134,89.807,89.757,3.21020759]
[1772625508274,3.04101134,89.817,89.764,3.21020759]
[1772625508573,3.04101134,89.817,89.766,3.21020759]
[1772625508868,3.04101134,89.815,89.766,3.21020759]
[1772625511088,3.04101134,89.815,89.767,38.98982921]
[1772625511271,3.04101134,89.815,89.768,3.21020759]
[1772625512273,3.04101134,89.813,89.768,3.21020759]
[1772625513060,11.13436957,89.812,89.769,38.98896054]
[1772625513372,3.04101134,89.811,89.77,3.21020759]
[1772625515053,11.13461752,89.81,89.771,11.13945483]
[1772625515269,3.04101134,89.809,89.772,3.21020759]
[1772625517278,3.04101134,89.807,89.773,14.34941425]
[1772625517978,3.04101134,89.807,89.751,3.21020759]
[1772625518183,3.04101134,89.797,89.752,3.21020759]
[1772625519393,3.04101134,89.795,89.754,3.21020759]
[1772625520163,38.97723729,89.796,89.754,3.21020759]
[1772625520164,3.04101134,89.793,89.754,3.21020759]
[1772625520365,3.04101134,89.791,89.754,3.21020759]
[1772625520674,3.04101134,89.789,89.754,3.21020759]
[1772625520875,3.04101134,89.787,89.754,3.21020759]
[1772625521065,3.04101134,89.785,89.754,3.21020759]
[1772625521269,3.04101134,89.783,89.756,3.21020759]
[1772625521981,3.04101134,89.783,89.755,11.14144058]
[1772625522565,3.04101134,89.783,89.756,3.21020759]
[1772625523088,3.04101134,89.788,89.756,3.21020759]
[1772625523288,11.13759383,89.786,89.758,3.21020759]
[1772625523467,3.04101134,89.785,89.758,3.21020759]
[1772625523985,3.04101134,89.785,89.751,3.21020759]
[1772625525584,3.04101134,89.79,89.753,3.21020759]
[1772625527464,3.04101134,89.794,89.755,3.21020759]
[1772625529486,3.15886603,89.792,89.757,3.24766335]
[1772625532285,3.15886603,89.792,89.759,3.24766335]
[1772625532690,3.15886603,89.791,89.759,3.24766335]
[1772625534288,3.15886603,89.791,89.761,3.24766335]
[1772625534594,3.15886603,89.789,89.761,3.24766335]
[1772625534887,3.15886603,89.787,89.761,3.24766335]
[1772625535293,3.15886603,89.787,89.755,11.14135352]
[1772625535494,3.15886603,89.787,89.756,3.24766335]
[1772625535692,3.15886603,89.785,89.756,3.24766335]
[1772625535996,3.15886603,89.783,89.756,3.24766335]
[1772625536188,3.15886603,89.781,89.756,3.24766335]
[1772625536389,3.15886603,89.781,89.758,3.24766335]
[1772625536890,3.15886603,89.779,89.758,3.24766335]
[1772625537694,3.15886603,89.785,89.758,3.24766335]
[1772625537899,3.15886603,89.794,89.758,3.24766335]
[1772625538393,27.83658266,89.81,89.759,11.14094408]
[1772625538394,3.15886603,89.792,89.759,11.14094408]
[1772625538597,3.15886603,89.79,89.759,11.14094408]
[1772625538896,3.15886603,89.788,89.759,14.38860743]
[1772625539078,3.15886603,89.788,89.76,3.24766335]
[1772625539275,7.3603305,89.787,89.76,3.24766335]
[1772625539584,3.15886603,89.785,89.76,3.24766335]
[1772625539981,3.15886603,89.792,89.76,3.24766335]
[1772625540290,3.15886603,89.79,89.76,3.24766335]
[1772625540486,3.15886603,89.787,89.762,3.24766335]
[1772625540683,3.15886603,89.785,89.762,3.24766335]
[1772625540887,11.13666694,89.794,89.762,3.24766335]
[1772625541092,7.36776545,89.793,89.762,3.24766335]
[1772625541398,27.83625225,89.811,89.762,3.24766335]
[1772625541399,3.15886603,89.791,89.762,3.24766335]
[1772625541599,3.15886603,89.789,89.762,3.24766335]
[1772625541894,3.15886603,89.787,89.757,11.14118916]
[1772625542081,3.15886603,89.785,89.757,11.14118916]
[1772625542280,3.15886603,89.785,89.746,27.85632903]
[1772625542281,3.15886603,89.783,89.737,3.24766335]
[1772625542481,3.15886603,89.781,89.737,3.24766335]
[1772625542682,3.15886603,89.778,89.739,3.24766335]